bitfinex/quotes_ETHUSD_20240730
["timestamp","ask_amount","ask_price","bid_price","bid_amount"]
[1722364428443,3.03532,3294.6,3293.9,2.4457]
[1722364428648,3.03532,3294.6,3294.0,3.0358]
[1722364428940,2.3297,3295.0,3294.1,35.0]
[1722364429098,3.03551,3294.4,3294.1,35.0]
[1722364429457,3.03554,3294.3,3294.1,35.0]
[1722364429676,3.03551,3294.4,3294.1,35.0]
[1722364431364,3.339141,3294.3,3293.4,10.38631]
[1722364431580,3.03582,3294.0,3293.4,10.38631]
[1722364431766,3.03559,3294.3,3293.5,35.0]
[1722364431935,3.03564,3294.2,3293.6,3.03612]
[1722364432142,3.03561,3294.3,3293.7,3.03608]
[1722364432339,3.0354,3294.5,3293.7,3.03608]
[1722364432670,3.0354,3294.5,3293.9,3.03586]
[1722364432840,3.03546,3294.4,3293.9,3.03586]
[1722364433044,0.303511,3294.7,3293.8,35.0]
[1722364433045,3.03569,3294.2,3293.8,35.0]
[1722364433441,3.03551,3294.4,3293.8,35.0]
[1722364433643,3.03551,3294.4,3293.8,38.036]
[1722364434582,0.303511,3294.7,3293.8,35.0]
[1722364434889,6.07103,3294.4,3293.8,38.036]
[1722364435182,3.0356,3294.3,3293.8,35.0]
[1722364435978,3.03532,3294.6,3293.8,38.03595]
[1722364436126,3.03532,3294.6,3293.8,38.03594]
[1722364436127,3.03547,3294.4,3293.8,38.03594]
[1722364436528,3.03518,3294.7,3294.1,3.03568]
[1722364436763,3.03518,3294.7,3294.0,3.03577]
[1722364436983,6.07064,3294.6,3294.0,3.03577]
[1722364437202,3.0353,3294.6,3293.9,0.06071354]
[1722364437480,3.0355,3294.4,3294.1,35.0]
[1722364439413,3.03532,3294.6,3294.1,35.0]
[1722364439586,3.03503,3294.9,3293.7,3.03604]
[1722364439787,3.03549,3294.4,3293.8,3.03594]
[1722364440095,3.03537,3294.5,3294.0,3.03581]
[1722364440289,3.03527,3294.6,3294.1,3.04901288]
[1722364440515,3.03552,3294.4,3293.9,35.0]
[1722364440725,3.03559,3294.3,3293.9,35.0]
[1722364440900,3.03576,3294.1,3293.5,3.77121]
[1722364441233,2.554,3294.9,3293.4,7.35]
[1722364441548,3.03609,3293.8,3293.3,35.0]
[1722364441692,3.03611,3293.7,3293.3,35.0]
[1722364441892,3.03592,3293.9,3293.3,39.95237349]
[1722364442115,3.03588,3294.0,3293.4,3.03632]
[1722364442312,3.0361,3293.7,3293.3,36.91599349]
[1722364442609,3.0361,3293.7,3293.3,35.0]
[1722364442807,3.03597,3293.9,3293.3,35.0]
[1722364443495,3.03583,3294.0,3293.4,3.03631]
[1722364443690,6.03568,3294.2,3293.4,3.03631]
[1722364443909,3.0,3294.2,3293.4,4.2621959]
[1722364444158,7.39,3294.3,3293.8,3.03595]
[1722364444364,3.03529,3294.6,3293.9,3.09655704]
[1722364444653,2.3933,3294.9,3293.9,0.06071704]
[1722364444654,3.03541,3294.5,3293.9,0.06071704]
[1722364444817,3.03541,3294.5,3293.9,3.09656704]
[1722364445015,3.03541,3294.5,3293.9,3.70982874]
[1722364445517,3.03578,3294.1,3293.5,5.41534]
[1722364445722,3.03553,3294.4,3293.5,3.03623]
[1722364445921,5.3933,3294.9,3293.5,3.03623]
[1722364445922,3.03559,3294.3,3293.7,3.03602]
[1722364446502,3.0356,3294.3,3293.7,3.03602]
[1722364446749,3.03541,3294.5,3293.8,3.03593]
[1722364446932,3.03527,3294.6,3294.0,3.03581]
[1722364447139,3.03541,3294.5,3293.8,38.03593]
[1722364447308,3.03541,3294.5,3293.9,3.01761434]
[1722364447511,3.03524,3294.7,3294.0,3.0358]
[1722364447824,3.03524,3294.7,3294.1,35.0]
[1722364447825,3.03529,3294.6,3294.1,35.0]
[1722364448003,3.03553,3294.4,3294.1,35.0]
[1722364448206,3.03561,3294.3,3293.7,3.03609]
[1722364448654,3.03561,3294.3,3293.8,35.0]
[1722364450231,3.03536,3294.5,3293.8,38.04901288]
[1722364450436,3.03546,3294.4,3293.8,38.04901288]
[1722364450635,3.03541,3294.5,3293.8,38.04901288]
[1722364450970,3.03586,3294.0,3293.2,10.3865]
[1722364451163,3.03586,3294.0,3293.4,3.03631]
[1722364451337,3.03592,3293.9,3293.5,35.0]
[1722364451538,3.03589,3294.0,3293.1,3.0366]
[1722364451749,3.03589,3294.0,3293.3,3.03646]
[1722364452055,3.03589,3294.0,3293.3,38.03646]
[1722364452667,10.4255,3294.4,3293.7,3.03603]
[1722364452963,10.4255,3294.4,3293.3,35.0]
[1722364453165,7.39,3294.4,3294.0,3.03573]
[1722364453323,3.03518,3294.7,3294.1,6.07131]
[1722364453519,3.03518,3294.7,3294.2,35.0]
[1722364454161,3.03517,3294.8,3294.2,35.0]
[1722364454323,3.03517,3294.8,3294.2,38.03558]
[1722364455455,3.03501,3294.9,3294.3,3.03551]
[1722364455658,3.03501,3294.9,3294.3,3.03548]
[1722364455822,3.03494,3295.0,3294.5,3.03535]
[1722364456022,10.42481,3295.1,3294.6,3.03526]
[1722364456272,3.03459,3295.4,3294.6,3.03526]
[1722364456574,3.03472,3295.2,3294.6,3.03526]
[1722364456790,3.03472,3295.2,3294.7,3.03517]
[1722364456934,6.06919,3295.4,3294.7,3.03517]
[1722364457298,6.06919,3295.4,3294.6,0.66775962]
[1722364457299,3.03459,3295.4,3294.6,0.66775962]
[1722364457448,3.03481,3295.1,3294.3,3.0355]
[1722364457778,3.03509,3294.8,3294.4,35.0]
[1722364457981,3.03505,3294.9,3294.4,35.0]
[1722364458279,3.03509,3294.8,3294.4,35.0]
[1722364458430,3.03495,3295.0,3294.4,38.04901288]
[1722364459746,3.03499,3294.9,3294.4,38.04901288]
[1722364460079,3.03487,3295.1,3294.5,3.03534]
[1722364460248,3.03487,3295.1,3294.5,4.98240248]
[1722364460584,3.0349,3295.0,3294.5,1.94706248]
[1722364460798,3.0349,3295.0,3294.4,38.03544]
[1722364461077,3.0349,3295.0,3294.4,3.03544]
[1722364461284,3.03504,3294.9,3294.4,3.03544]
[1722364461583,3.03477,3295.2,3294.6,35.0]
[1722364461782,3.03446,3295.5,3294.6,35.0]
[1722364461964,3.035,3294.9,3294.6,35.0]
[1722364464048,3.0349,3295.0,3294.6,35.0]
[1722364464791,3.035,3294.9,3294.6,35.0]
[1722364465109,3.03517,3294.8,3294.6,35.0]
[1722364465710,3.035,3294.9,3294.6,35.0]
[1722364466012,3.0355,3294.4,3293.8,12.67194]
[1722364466169,3.0355,3294.4,3293.8,5.32194]
[1722364466509,3.0355,3294.4,3293.9,35.0]
[1722364467068,3.03514,3294.8,3293.9,38.03589]
[1722364467269,3.03531,3294.6,3294.0,3.04901288]
[1722364467494,3.03531,3294.6,3294.0,6.08480288]
[1722364467701,3.03531,3294.6,3294.1,3.0357]
[1722364467869,3.03531,3294.6,3294.2,35.0]
[1722364468228,3.03536,3294.5,3294.2,35.0]
[1722364468883,3.03527,3294.6,3294.2,35.0]
[1722364469102,3.03514,3294.8,3294.2,35.0]
[1722364469324,3.03534,3294.6,3294.2,35.0]
[1722364469525,6.07068,3294.6,3294.2,35.0]
[1722364469716,3.03534,3294.6,3294.2,35.0]
[1722364470933,3.03518,3294.7,3294.2,35.0]
[1722364471250,3.03513,3294.8,3294.2,43.90622139]
[1722364471461,3.03513,3294.8,3294.2,40.87065139]
[1722364471619,6.07068,3294.6,3294.2,35.0]
[1722364472098,3.03532,3294.6,3294.2,35.0]
[1722364472299,3.03554,3294.3,3294.2,35.0]
[1722364472495,3.03577,3294.1,3293.4,10.3863]
[1722364472734,3.03577,3294.1,3293.5,4.07484]
[1722364472955,3.03558,3294.3,3293.6,3.03618]
[1722364473254,3.03523,3294.7,3293.7,0.06071766]
[1722364473399,3.03541,3294.5,3293.6,3.03614]
[1722364473715,0.532873,3294.7,3293.5,1.03863]
[1722364473716,3.03528,3294.6,3293.5,1.03863]
[1722364473919,5.32854,3294.9,3293.6,0.838863]
[1722364474142,5.32854,3294.9,3294.1,3.03568]
[1722364474452,3.03509,3294.8,3294.1,3.03567]
[1722364474949,3.03509,3294.8,3294.1,6.07133]
[1722364475127,3.03509,3294.8,3294.1,3.03566]
[1722364475326,3.03517,3294.7,3294.0,3.03581]
[1722364475642,6.07041,3294.7,3294.0,3.03581]
[1722364475850,3.03534,3294.6,3293.7,3.03605]
[1722364476154,2.2935,3294.9,3293.5,3.0362]
[1722364476155,3.03564,3294.2,3293.5,3.0362]
[1722364476359,3.03579,3294.1,3293.4,10.38632]
[1722364476518,6.07161,3294.1,3293.5,1.342274]
[1722364476855,3.03579,3294.1,3293.5,4.378544]
[1722364477022,3.03559,3294.3,3293.5,1.342274]
[1722364477204,3.03559,3294.3,3293.6,3.03617]
[1722364477405,3.03559,3294.3,3293.6,4.2089744]
[1722364477642,3.03559,3294.3,3293.7,3.03609]
[1722364478350,3.03532,3294.6,3293.8,3.03599]
[1722364478551,3.03545,3294.4,3293.8,3.03599]
[1722364478855,3.03545,3294.4,3293.9,3.03591]
[1722364479014,3.03554,3294.3,3293.8,0.72449244]
[1722364479342,3.03554,3294.3,3293.7,6.07212]
[1722364479544,6.07116,3294.3,3293.7,3.03603]
[1722364480138,3.03554,3294.3,3293.7,3.03603]
[1722364480649,3.03564,3294.2,3293.7,3.03603]
[1722364480804,3.03564,3294.2,3293.6,4.2090244]
[1722364481010,3.03564,3294.2,3293.6,4.26973885]
[1722364481322,3.03554,3294.3,3293.7,3.03604]
[1722364481504,3.03554,3294.3,3293.7,3.79707189]
[1722364482045,6.07154,3294.1,3293.7,0.76103189]
[1722364482344,3.03557,3294.3,3293.5,3.0362]
[1722364482529,3.03557,3294.3,3293.6,3.03613]
[1722364482904,3.03575,3294.1,3293.6,3.03613]
[1722364483105,3.03557,3294.3,3293.7,3.03607]
[1722364483301,3.03539,3294.5,3293.9,3.03591]
[1722364483501,3.03523,3294.7,3294.1,3.03567]
[1722364483756,3.03523,3294.7,3294.2,3.03558]
[1722364483757,3.03518,3294.7,3294.2,3.03558]
[1722364484251,3.03509,3294.8,3294.2,3.03557]
[1722364484630,3.03513,3294.8,3294.3,3.0962447]
[1722364484833,3.03522,3294.7,3294.3,0.30962447]
[1722364485141,3.03513,3294.8,3294.3,0.0607047]
[1722364485340,3.03499,3294.9,3294.4,3.03544]
[1722364485713,14.9741,3295.3,3294.4,3.03544]
[1722364485714,13.45977,3295.1,3294.4,3.03544]
[1722364485963,3.03488,3295.1,3294.4,6.07083]
[1722364486112,3.03488,3295.1,3294.4,3.03539]
[1722364486309,3.0349,3295.0,3294.4,3.03539]
[1722364486560,3.03488,3295.1,3294.5,3.03535]
[1722364486761,3.03487,3295.1,3294.5,3.03535]
[1722364487529,3.03482,3295.1,3294.5,3.0353]
[1722364487728,3.03482,3295.1,3294.6,3.03526]
[1722364488109,3.03467,3295.3,3294.6,6.71394994]
[1722364488283,3.03467,3295.3,3294.6,3.67868994]
[1722364488561,3.03497,3295.0,3294.6,0.64347994]
[1722364488793,2.552,3295.4,3294.0,0.3045]
[1722364488794,5.58655,3295.4,3294.0,0.3045]
[1722364489071,3.03499,3294.9,3294.0,0.3045]
[1722364489679,3.03499,3294.9,3294.4,3.0354]
[1722364489838,6.06976,3295.1,3294.5,3.03531]
[1722364490046,3.0349,3295.0,3294.5,3.03531]
[1722364490853,3.0349,3295.0,3294.4,3.03544]
[1722364491267,6.06986,3295.0,3294.4,3.03544]
[1722364491991,3.03481,3295.1,3294.4,3.0354]
[1722364492152,3.03481,3295.1,3294.5,3.0353]
[1722364492969,3.03481,3295.1,3294.6,3.03524]
[1722364495298,3.03468,3295.3,3294.6,3.0352]
[1722364495517,3.03476,3295.2,3294.6,3.0352]
[1722364496298,3.03482,3295.1,3294.5,3.03536]
[1722364496507,3.0349,3295.0,3294.5,3.369252]
[1722364496816,3.03514,3294.8,3294.1,3.03567]
[1722364496976,3.03514,3294.8,3294.2,0.334017]
[1722364497181,3.03499,3294.9,3294.3,3.03549]
[1722364497514,3.03524,3294.7,3294.2,0.334017]
[1722364498211,3.03505,3294.9,3294.2,0.334017]
[1722364498377,3.03505,3294.9,3294.3,3.0355]
[1722364498992,3.03538,3294.5,3294.0,3.03578]
[1722364499515,3.03526,3294.6,3294.0,3.03576]
[1722364499670,3.03526,3294.6,3294.0,3.03582]
[1722364499868,3.03526,3294.6,3294.0,3.642997]
[1722364500163,6.0706,3294.6,3294.0,3.642997]
[1722364500368,3.03526,3294.6,3294.0,3.642997]
[1722364500637,3.03526,3294.6,3294.0,3.642937]
[1722364501186,3.03536,3294.5,3294.0,3.642937]
[1722364501362,3.0355,3294.4,3294.0,0.607177]
[1722364501564,3.0355,3294.4,3293.7,0.607219]
[1722364501565,3.0356,3294.3,3293.7,0.607219]
[1722364501862,3.0356,3294.3,3293.8,3.03599]
[1722364502108,3.03537,3294.5,3293.9,3.03584]
[1722364502284,3.03527,3294.6,3294.0,3.03577]
[1722364502816,3.03513,3294.8,3294.2,3.03555]
[1722364502965,10.42491,3295.0,3294.3,3.03549]
[1722364503779,10.42491,3295.0,3294.3,3.09619379]
[1722364504136,10.4249,3295.0,3294.4,3.03539]
[1722364504267,7.39,3295.0,3294.6,3.03521]
[1722364504802,7.39,3295.0,3294.6,3.09589787]
[1722364504986,7.39,3295.0,3294.7,0.30958979]
[1722364505183,3.03476,3295.2,3294.6,3.09594787]
[1722364505521,5.3573,3295.6,3294.6,3.09594787]
[1722364505522,3.03462,3295.3,3294.6,3.09594787]
[1722364505770,3.03462,3295.3,3294.7,3.03512]
[1722364505929,5.3573,3295.6,3294.6,3.0352]
[1722364506226,3.03485,3295.1,3294.4,3.03539]
[1722364506372,3.0349,3295.0,3294.4,3.03539]
[1722364506577,3.03485,3295.1,3294.4,3.03539]
[1722364506578,3.03499,3294.9,3294.4,3.03539]
[1722364506786,3.03499,3294.9,3294.3,3.03552]
[1722364507029,3.03499,3294.9,3294.4,0.6678221]
[1722364507216,3.03499,3294.9,3294.4,3.7032621]
[1722364507932,3.03485,3295.1,3294.4,0.6678221]
[1722364508231,3.03485,3295.1,3294.5,3.03536]
[1722364508377,3.03485,3295.1,3294.6,3.03525]
[1722364508581,3.03485,3295.1,3294.6,3.41162698]
[1722364509028,3.0349,3295.0,3294.6,0.37637698]
[1722364509328,3.0349,3295.0,3294.4,3.7032221]
[1722364509680,3.0349,3295.0,3294.5,3.09600789]
[1722364509881,3.0349,3295.0,3294.5,3.03531]
[1722364510076,3.03467,3295.3,3294.6,3.03526]
[1722364510400,3.03476,3295.2,3294.6,3.0959579]
[1722364510594,3.03481,3295.1,3294.6,3.7758749]
[1722364511578,3.03467,3295.3,3294.6,3.7757949]
[1722364511885,3.03467,3295.3,3294.6,3.0958779]
[1722364512088,3.03476,3295.2,3294.6,3.0958779]
[1722364512412,3.03467,3295.3,3294.7,35.0]
[1722364512728,3.03467,3295.3,3294.7,38.03512]
[1722364512892,3.03467,3295.3,3294.8,1.91340524]
[1722364513099,3.03467,3295.3,3294.8,4.94848524]
[1722364513344,3.03471,3295.2,3294.7,0.06069717]
[1722364513533,3.03471,3295.2,3294.7,35.06069717]
[1722364513866,3.03467,3295.3,3294.7,38.09586717]
[1722364514628,3.03473,3295.2,3294.7,38.09586717]
[1722364515122,3.03467,3295.3,3294.8,3.03508]
[1722364515327,3.03447,3295.5,3294.9,3.03499]
[1722364515770,3.03459,3295.4,3294.8,6.08409288]
[1722364515982,3.03468,3295.3,3294.8,3.04901288]
[1722364516329,3.03477,3295.2,3294.7,35.0]
[1722364516673,3.03482,3295.1,3294.7,35.0]
[1722364517563,3.03491,3295.0,3294.7,35.0]
[1722364517944,3.03503,3294.9,3294.7,35.0]
[1722364518677,3.0349,3295.0,3294.7,35.0]
[1722364518878,3.0349,3295.0,3294.8,3.04901288]
[1722364519474,3.03459,3295.4,3294.8,3.10971069]
[1722364519866,3.03459,3295.4,3294.8,6.14474069]
[1722364520187,3.03463,3295.3,3294.8,6.14474069]
[1722364520348,3.03463,3295.3,3294.9,3.04901288]
[1722364520963,3.03454,3295.4,3294.9,3.04901288]
[1722364521187,3.03467,3295.3,3294.9,3.04901288]
[1722364521354,3.03471,3295.2,3294.8,3.04901288]
[1722364521555,3.03457,3295.4,3294.8,6.08407288]
[1722364521757,3.03467,3295.3,3294.8,6.08407288]
[1722364521956,3.03467,3295.3,3294.8,3.04901288]
[1722364522197,3.03447,3295.5,3294.4,3.03545]
[1722364522405,3.03519,3294.7,3294.3,2.2714]
[1722364522586,2.4057,3295.0,3294.0,7.35]
[1722364522757,3.03559,3294.3,3293.7,3.03601]
[1722364522954,3.03559,3294.3,3293.6,2.4914]
[1722364523201,3.03568,3294.2,3293.6,5.52754]
[1722364523406,3.03568,3294.2,3293.8,35.0]
[1722364523705,3.03568,3294.2,3293.5,10.38622]
[1722364523706,3.03588,3294.0,3293.5,7.35]
[1722364524048,5.49478,3294.2,3293.5,7.35]
[1722364524049,5.49478,3294.2,3293.5,11.424861]
[1722364524395,5.5875,3294.4,3293.5,11.424861]
[1722364524396,3.0355,3294.4,3293.8,3.03599]
[1722364524564,2.4591,3294.5,3293.9,3.09658548]
[1722364524565,3.03537,3294.5,3293.9,3.09658548]
[1722364524766,6.07043,3294.7,3294.0,3.03581]
[1722364525104,3.03518,3294.7,3294.0,0.67394349]
[1722364525253,3.03527,3294.6,3294.0,38.70971349]
[1722364525456,3.03519,3294.7,3294.0,38.70971349]
[1722364525652,3.03545,3294.4,3294.0,35.0]
[1722364525902,3.03564,3294.2,3294.0,35.0]
[1722364526111,3.03545,3294.4,3294.0,35.0]
[1722364526653,3.0353,3294.6,3294.0,35.0]
[1722364526886,2.552,3294.8,3294.0,35.0]
[1722364526887,3.03551,3294.4,3294.0,35.0]
[1722364527286,3.03564,3294.2,3294.0,35.0]
[1722364527759,3.03551,3294.4,3294.0,35.0]
[1722364528160,3.03559,3294.3,3294.0,35.0]
[1722364528357,3.03565,3294.2,3294.0,35.0]
[1722364528575,3.03573,3294.1,3294.0,35.0]
[1722364528981,3.03563,3294.3,3294.0,35.0]
[1722364529185,3.03569,3294.2,3294.0,35.0]
[1722364529383,0.303569,3294.2,3293.5,7.35]
[1722364529615,3.03617,3293.7,3293.5,7.35]
[1722364529827,2.2626,3294.1,3293.5,7.35]
[1722364529828,3.03619,3293.6,3293.5,7.35]
[1722364529973,3.03595,3293.9,3293.5,35.0]
[1722364530175,3.03611,3293.7,3293.5,35.0]
[1722364530878,6.07193,3293.9,3293.5,35.0]
[1722364531209,5.29836,3294.1,3293.5,35.0]
[1722364531394,6.03582,3294.0,3293.5,35.0]
[1722364531970,3.03592,3293.9,3293.5,35.0]
[1722364532673,3.0,3294.0,3293.5,35.0]
[1722364532906,3.03592,3293.9,3293.5,35.0]
[1722364533419,3.03602,3293.8,3293.5,35.0]
[1722364533616,3.03611,3293.7,3293.5,35.0]
[1722364533990,3.03616,3293.7,3293.5,35.0]
[1722364534192,3.03603,3293.8,3293.5,35.0]
[1722364534501,3.0361,3293.7,3293.5,35.0]
[1722364535471,3.03602,3293.8,3293.5,35.0]
[1722364535675,3.0,3294.0,3293.5,35.0]
[1722364536096,2.552,3293.9,3293.5,35.0]
[1722364536332,5.58793,3293.9,3293.5,35.0]
[1722364536676,8.62392,3293.9,3293.5,35.0]
[1722364536932,5.58793,3293.9,3293.5,35.0]
[1722364537302,8.62393,3293.9,3293.5,35.0]
[1722364537528,3.036,3293.8,3293.5,35.0]
[1722364537840,2.552,3293.9,3293.5,38.04901288]
[1722364538017,7.39,3294.2,3293.6,2.34811807]
[1722364538198,7.39,3294.2,3293.7,3.04901288]
[1722364538734,2.552,3293.9,3293.7,3.04901288]
[1722364539022,2.552,3293.9,3293.5,35.0]
[1722364539023,5.58796,3293.9,3293.5,35.0]
[1722364539584,2.552,3293.9,3293.5,35.0]
[1722364540081,8.62393,3293.9,3293.5,35.0]
[1722364540330,3.03601,3293.8,3293.5,35.0]
[1722364540939,3.03612,3293.7,3293.5,35.0]
[1722364541221,3.03644,3293.4,3292.9,2.2874]
[1722364541428,2.552,3293.2,3292.9,2.2874]
[1722364541584,2.552,3293.2,3293.1,35.0]
[1722364541780,5.58856,3293.2,3293.1,35.0]
[1722364543023,5.58856,3293.2,3291.5,3.0381]
[1722364543024,2.552,3293.2,3292.0,2.4563]
[1722364543181,2.552,3292.7,3292.0,2.4563]
[1722364543386,3.03711,3292.6,3292.0,2.4563]
[1722364543620,2.552,3292.3,3292.1,35.0]
[1722364544163,8.62622,3292.7,3292.1,35.0]
[1722364544477,5.5891,3292.7,3292.1,35.0]
[1722364545174,2.552,3292.7,3292.2,3.10975659]
[1722364545338,2.552,3292.7,3292.2,3.04901288]
[1722364545772,7.39,3292.8,3292.2,3.04901288]
[1722364546095,7.39,3292.8,3292.3,2.37453768]
[1722364546239,7.39,3292.8,3292.4,0.54235506]
[1722364546637,7.39,3292.8,3292.5,35.0]
[1722364546848,3.0,3293.0,3292.5,35.0]
[1722364547433,3.0,3293.0,3292.5,38.03717]
[1722364548283,2.552,3293.1,3292.7,3.037]
[1722364548428,2.552,3293.1,3292.8,0.30977316]
[1722364548630,2.552,3293.1,3292.4,0.54235506]
[1722364548870,5.5887,3293.1,3292.9,35.0]
[1722364549276,8.62543,3293.1,3292.9,35.0]
[1722364549490,3.03674,3293.0,3292.9,35.0]
[1722364549790,6.03683,3293.0,3291.9,2.4403]
[1722364549937,2.552,3292.6,3292.0,1.28281]
[1722364550133,2.552,3292.6,3292.1,35.0]
[1722364550950,3.03725,3292.5,3292.1,35.0]
[1722364551768,3.03737,3292.4,3292.1,35.0]
[1722364551973,3.03725,3292.5,3292.1,35.0]
[1722364552227,3.03743,3292.3,3292.1,35.0]
[1722364552460,5.58948,3292.2,3292.1,35.0]
[1722364552672,8.62696,3292.2,3292.1,35.0]
[1722364553738,5.58948,3292.2,3292.1,35.0]
[1722364553977,2.552,3292.2,3292.1,35.0]
[1722364554185,2.552,3292.2,3292.1,38.04901288]
[1722364554680,2.552,3292.6,3292.1,38.04901288]
[1722364554903,3.0,3292.5,3292.1,38.04901288]
[1722364555065,3.0,3292.5,3292.2,0.06074551]
[1722364555266,3.0,3292.5,3292.1,38.04901288]
[1722364555567,3.0,3292.5,3292.2,2.56415552]
[1722364557752,2.552,3292.6,3292.2,2.56415552]
[1722364557993,7.39,3292.9,3292.2,2.56415552]
[1722364557994,7.39,3292.9,3292.3,0.06074212]
[1722364558256,7.39,3292.9,3292.2,2.56415552]
[1722364558711,10.42684,3292.9,3292.2,2.56415552]
[1722364558917,10.42684,3292.9,3292.3,3.04901288]
[1722364559198,3.03693,3292.8,3292.3,3.04901288]
[1722364559569,7.39,3292.9,3292.3,3.04901288]
[1722364561405,2.552,3293.0,3292.3,3.04901288]
[1722364561558,3.0,3292.9,3292.3,3.04901288]
[1722364561757,2.552,3293.0,3292.4,3.90234284]
[1722364561958,2.552,3293.0,3292.5,0.06073141]
[1722364562186,2.552,3293.0,3292.4,0.86506284]
[1722364562515,2.552,3293.0,3292.6,35.0]
[1722364562717,5.58881,3293.0,3292.6,35.0]
[1722364562919,3.03702,3292.7,3292.6,35.0]
[1722364563211,2.3764,3292.9,3291.5,7.35]
[1722364563378,2.552,3292.5,3291.6,3.0]
[1722364563579,2.552,3292.5,3292.0,35.0]
[1722364564219,3.0373,3292.4,3292.0,35.0]
[1722364564768,2.552,3292.5,3292.0,35.0]
[1722364567715,7.39,3292.8,3292.0,35.0]
[1722364568023,3.0,3292.7,3292.1,3.04901288]
[1722364568184,7.39,3292.8,3292.1,6.08653288]
[1722364568373,7.39,3292.8,3292.1,3.04901288]
[1722364568615,7.39,3292.8,3292.2,5.31446]
[1722364568773,7.39,3293.2,3292.3,0.83634729]
[1722364568974,7.39,3293.2,3292.4,0.06073466]
[1722364569273,7.39,3293.2,3292.3,0.83634729]
[1722364569712,7.39,3293.2,3292.5,35.0]
[1722364570218,3.0,3293.1,3292.5,35.0]
[1722364570376,3.0,3293.1,3292.6,3.04901288]
[1722364571574,2.552,3293.0,3292.5,35.0]
[1722364571776,5.58917,3292.6,3291.4,5.36146]
[1722364572019,3.0373,3292.4,3291.4,2.3233]
[1722364572391,3.0373,3292.4,3291.8,35.0]
[1722364572609,8.62637,3292.6,3291.9,3.04901288]
[1722364572989,3.03722,3292.5,3291.4,2.3233]
[1722364573207,2.552,3292.6,3291.8,35.0]
[1722364573851,7.39,3292.8,3291.8,35.0]
[1722364573852,3.03762,3292.1,3291.8,35.0]
[1722364574412,2.552,3292.2,3291.8,35.62814299]
[1722364575648,5.58948,3292.2,3291.8,35.0]
[1722364576416,2.552,3292.2,3291.8,35.0]
[1722364577026,8.29533,3292.5,3291.9,0.06074875]
[1722364577227,3.03738,3292.4,3291.9,0.06074875]
[1722364577554,3.03737,3292.4,3291.9,3.04901288]
[1722364577772,5.58948,3292.2,3291.8,35.0]
[1722364577942,2.552,3292.2,3291.8,35.0]
[1722364578752,2.552,3292.2,3291.9,0.06074877]
[1722364578955,2.552,3292.2,3291.9,3.10976165]
[1722364580862,2.552,3292.2,3291.9,3.04901288]
[1722364581061,2.552,3292.2,3291.6,2.4039]
[1722364581406,2.552,3292.2,3291.7,35.0]
[1722364583101,2.552,3292.2,3291.8,0.0607488]
[1722364583447,2.552,3292.2,3291.6,2.4039]
[1722364583693,2.552,3292.2,3291.7,35.0]
[1722364583895,2.552,3292.2,3291.8,2.2946998]
[1722364584252,2.552,3292.2,3291.3,2.4011]
[1722364584597,2.552,3292.2,3291.4,35.0]
[1722364585075,2.552,3292.2,3291.5,0.06074881]
[1722364585781,3.0,3292.5,3291.6,38.03798]
[1722364585946,6.03706,3292.7,3291.7,0.06074226]
[1722364586146,6.03706,3292.7,3291.6,41.07596]
[1722364586147,3.0,3292.7,3291.9,2.432]
[1722364586350,7.39,3292.8,3292.0,0.06073883]
[1722364586596,7.39,3292.8,3292.1,35.0]
[1722364586761,3.03708,3292.7,3292.1,35.0]
[1722364586949,2.552,3292.6,3292.1,35.0]
[1722364587143,3.03725,3292.5,3292.1,35.0]
[1722364587375,3.03725,3292.5,3292.1,38.04901288]
[1722364587853,2.552,3292.6,3292.2,0.0607434]
[1722364588161,2.552,3292.6,3292.1,38.04901288]
[1722364589176,3.03725,3292.5,3292.1,38.04901288]
[1722364589571,2.552,3292.6,3292.2,2.84389509]
[1722364589772,7.39,3292.8,3292.3,0.06073867]
[1722364590035,2.552,3293.0,3292.3,0.06073867]
[1722364590312,10.39,3293.3,3292.3,0.06073867]
[1722364590520,13.42646,3293.3,3292.3,0.06073867]
[1722364590837,13.42646,3293.3,3292.4,0.28438897]
[1722364591121,13.42646,3293.3,3292.5,0.06073044]
[1722364591785,7.39,3293.3,3292.5,0.06073044]
[1722364592119,7.39,3293.3,3292.4,0.28438897]
[1722364592276,10.42651,3293.3,3292.4,0.28438897]
[1722364592476,10.42651,3293.3,3292.6,35.0]
[1722364592810,7.39,3293.3,3292.7,3.04901288]
[1722364593017,2.552,3293.4,3292.7,3.04901288]
[1722364594287,2.552,3293.4,3292.8,0.06072658]
[1722364594478,2.552,3293.8,3292.8,2.4834]
[1722364594674,2.552,3293.8,3293.0,3.03672]
[1722364594873,2.552,3293.8,3292.9,0.55324129]
[1722364595112,3.03615,3293.7,3292.9,0.55324129]
[1722364595588,2.552,3293.8,3292.9,0.55324129]
[1722364595589,5.588,3293.8,3292.9,0.55324129]
[1722364595823,2.552,3293.8,3292.9,0.55324129]
[1722364596021,2.552,3293.8,3293.0,0.66807599]
[1722364596224,2.552,3293.8,3293.1,0.06071867]
[1722364596523,2.552,3293.8,3293.0,0.60735613]
[1722364598714,5.58801,3293.8,3292.9,0.55324129]